fUST/lending_fUST_20260217
["ID","MTS","AMOUNT","RATE_DAILY","PERIOD"]
[405796171,1771319438638,-588.0,0.00014551,2]
[405796172,1771319438647,-500.0,0.00014551,2]
[405796173,1771319438657,-500.0,0.00014551,2]
[405796174,1771319438666,-500.0,0.00014551,2]
[405796175,1771319438676,-500.0,0.00014551,2]
[405796176,1771319438687,-500.0,0.00014551,2]
[405796177,1771319438697,-500.0,0.00014551,2]
[405796178,1771319438707,-500.0,0.00014551,2]
[405796179,1771319438717,-500.0,0.00014551,2]
[405796180,1771319438727,-500.0,0.00014551,2]
[405796181,1771319438736,-500.0,0.00014551,2]
[405796182,1771319438747,-500.0,0.00014551,2]
[405796183,1771319438757,-500.0,0.00014551,2]
[405796184,1771319438767,-500.0,0.00014551,2]
[405796185,1771319438776,-500.0,0.00014551,2]
[405796186,1771319438786,-500.0,0.00014551,2]
[405796187,1771319438796,-500.0,0.00014551,2]
[405796188,1771319438806,-500.0,0.00014551,2]
[405796189,1771319438817,-500.0,0.00014551,2]
[405796190,1771319438826,-500.0,0.00014551,2]
[405796191,1771319438836,-500.0,0.00014551,2]
[405796192,1771319438845,-500.0,0.00014551,2]
[405796193,1771319438855,-500.0,0.00014551,2]
[405796194,1771319438864,-500.0,0.00014551,2]
[405796195,1771319438874,-500.0,0.00014551,2]
[405796196,1771319438892,-500.0,0.00014551,2]
[405796197,1771319438901,-500.0,0.00014551,2]
[405796198,1771319438911,-500.0,0.00014551,2]
[405796199,1771319438920,-500.0,0.00014551,2]
[405796200,1771319438931,-500.0,0.00014551,2]
[405796201,1771319438941,-500.0,0.00014551,2]
[405796202,1771319438951,-500.0,0.00014551,2]
[405796203,1771319438960,-500.0,0.00014551,2]
[405796204,1771319438971,-500.0,0.00014551,2]
[405796205,1771319438981,-500.0,0.00014551,2]
[405796206,1771319438991,-500.0,0.00014551,2]
[405796207,1771319439000,-500.0,0.00014551,2]
[405796208,1771319439010,-500.0,0.00014551,2]
[405796209,1771319439020,-484.11743691,0.00014551,2]
[405796210,1771319439029,-500.0,0.00014551,2]
[405796211,1771319439039,-500.0,0.00014551,2]
[405796212,1771319439049,-500.0,0.00014551,2]
[405796213,1771319439059,-500.0,0.00014551,2]
[405796214,1771319439068,-500.0,0.00014551,2]
[405796215,1771319439078,-500.0,0.00014551,2]
[405796216,1771319439088,-500.0,0.00014551,2]
[405796217,1771319439100,-500.0,0.00014551,2]
[405796218,1771319439109,-500.0,0.00014551,2]
[405796219,1771319439119,-500.0,0.00014551,2]
[405796220,1771319439128,-500.0,0.00014551,2]
[405796221,1771319439139,-500.0,0.00014551,2]
[405796222,1771319439148,-500.0,0.00014551,2]
[405796223,1771319439157,-500.0,0.00014551,2]
[405796224,1771319439166,-500.0,0.00014551,2]
[405796225,1771319439176,-500.0,0.00014551,2]
[405796226,1771319439185,-500.0,0.00014551,2]
[405796227,1771319439195,-500.0,0.00014551,2]
[405796228,1771319439205,-500.0,0.00014551,2]
[405796229,1771319439214,-500.0,0.00014551,2]
[405796230,1771319439224,-500.0,0.00014551,2]
[405796231,1771319439234,-500.0,0.00014551,2]
[405796232,1771319439243,-500.0,0.00014551,2]
[405796233,1771319439253,-500.0,0.00014551,2]
[405796234,1771319439262,-500.0,0.00014551,2]
[405796235,1771319439272,-500.0,0.00014551,2]
[405796236,1771319439282,-500.0,0.00014551,2]
[405796237,1771319439292,-313.35773622,0.00014551,2]
[405796238,1771319439301,-500.0,0.00014551,2]
[405796239,1771319439312,-291.86966411,0.00014551,2]
[405796240,1771319439321,-500.0,0.00014551,2]
[405796241,1771319439331,-500.0,0.00014551,2]
[405796242,1771319439340,-500.0,0.00014551,2]
[405796243,1771319439349,-500.0,0.00014551,2]
[405796244,1771319439359,-500.0,0.00014551,2]
[405796245,1771319439369,-500.0,0.00014551,2]
[405796246,1771319439379,-500.0,0.00014551,2]
[405796247,1771319439389,-500.0,0.00014551,2]
[405796248,1771319439398,-500.0,0.00014551,2]
[405796249,1771319439408,-500.0,0.00014551,2]
[405796250,1771319439417,-500.0,0.00014551,2]
[405796251,1771319439427,-500.0,0.00014551,2]
[405796252,1771319439437,-500.0,0.00014551,2]
[405796253,1771319439447,-199.36238279,0.00014551,2]
[405796254,1771319439456,-500.0,0.00014551,2]
[405796255,1771319439465,-500.0,0.00014551,2]
[405796256,1771319439475,-500.0,0.00014551,2]
[405796257,1771319439484,-500.0,0.00014551,2]
[405796258,1771319439494,-500.0,0.00014551,2]
[405796259,1771319439503,-500.0,0.00014551,2]
[405796260,1771319439513,-500.0,0.00014551,2]
[405796261,1771319439523,-500.0,0.00014551,2]
[405796262,1771319439533,-500.0,0.00014551,2]
[405796263,1771319439543,-500.0,0.00014551,2]
[405796264,1771319439552,-500.0,0.00014551,2]
[405796265,1771319439561,-500.0,0.00014551,2]
[405796266,1771319439571,-500.0,0.00014551,2]
[405796267,1771319439581,-339.85634453,0.00014551,2]
[405796268,1771319439597,-160.14365547,0.00014551,2]
[405796269,1771319439606,-500.0,0.00014551,2]
[405796270,1771319439616,-500.0,0.00014551,2]
[405796271,1771319439626,-385.45456313,0.00014551,2]
[405796272,1771319439637,-114.54543687,0.00014551,2]
[405796273,1771319439647,-250.0,0.00014551,2]
[405796274,1771319439656,-149.14793448,0.00014551,2]
[405796275,1771319439690,435.47,0.000109,2]
[405796276,1771319439723,435.47,0.00011,2]
[405796277,1771319440188,435.47,0.00011,2]
[405796278,1771319440491,-350.85206552,0.00014551,2]
[405796279,1771319440501,-500.0,0.00014551,2]
[405796280,1771319440511,-327.08267653,0.00014551,2]
[405796281,1771319440525,-172.91732347,0.00014551,2]
[405796282,1771319440534,-500.0,0.00014551,2]
[405796283,1771319440543,-500.0,0.00014551,2]
[405796284,1771319440552,-500.0,0.00014551,2]
[405796285,1771319440562,-304.08267653,0.00014551,2]
[405796286,1771319440573,-195.91732347,0.00014551,2]
[405796287,1771319440583,-500.0,0.00014551,2]
[405796288,1771319440592,-500.0,0.00014551,2]
[405796289,1771319440602,-500.0,0.00014551,2]
[405796290,1771319440611,-500.0,0.00014551,2]
[405796291,1771319440621,-500.0,0.00014551,2]
[405796292,1771319440631,-500.0,0.00014551,2]
[405796293,1771319440640,-87.01206475,0.00014551,2]
[405796294,1771319440680,-412.98793525,0.00014551,2]
[405796295,1771319440690,-392.89653228,0.00014551,2]
[405796296,1771319440861,435.47,0.00011,2]
[405796306,1771319443517,-107.10346772,0.00014551,2]
[405796307,1771319443527,-500.0,0.00014551,2]
[405796308,1771319443536,-500.0,0.00014551,2]
[405796309,1771319443547,-500.0,0.00014551,2]
[405796310,1771319443557,-254.6521849,0.00014551,2]
[405796311,1771319443567,-500.0,0.00014551,2]
[405796312,1771319443576,-500.0,0.00014551,2]
[405796313,1771319443586,-500.0,0.00014551,2]
[405796314,1771319443596,-500.0,0.00014551,2]
[405796315,1771319443606,-500.0,0.00014551,2]
[405796316,1771319443616,-500.0,0.00014551,2]
[405796317,1771319443625,-500.0,0.00014551,2]
[405796318,1771319443635,-500.0,0.00014551,2]
[405796319,1771319443645,-500.0,0.00014551,2]
[405796320,1771319443655,-500.0,0.00014551,2]
[405796321,1771319443664,-500.0,0.00014551,2]
[405796322,1771319443674,-500.0,0.00014551,2]
[405796323,1771319443683,-500.0,0.00014551,2]
[405796324,1771319443692,-500.0,0.00014551,2]
[405796325,1771319443702,-500.0,0.00014551,2]
[405796326,1771319443712,-500.0,0.00014551,2]
[405796327,1771319443721,-500.0,0.00014551,2]
[405796328,1771319443730,-500.0,0.00014551,2]
[405796329,1771319443740,-500.0,0.00014551,2]
[405796330,1771319443750,-500.0,0.00014551,2]
[405796331,1771319443759,-500.0,0.00014551,2]
[405796332,1771319443769,-500.0,0.00014551,2]
[405796333,1771319443781,-500.0,0.00014551,2]
[405796334,1771319443791,-179.12342673,0.00014551,2]
[405796335,1771319443969,-320.87657327,0.00014551,2]
[405796336,1771319443979,-89.03491779,0.00014551,2]
[405796339,1771319446097,-410.96508221,0.00014551,2]
[405796340,1771319446106,-500.0,0.00014551,2]
[405796341,1771319446115,-500.0,0.00014551,2]
[405796342,1771319446125,-500.0,0.00014551,2]
[405796343,1771319446134,-500.0,0.00014551,2]
[405796344,1771319446143,-500.0,0.00014551,2]
[405796345,1771319446153,-500.0,0.00014551,2]
[405796346,1771319446162,-500.0,0.00014551,2]
[405796347,1771319446268,-12.06607999,0.00014551,2]
[405796348,1771319446281,-487.93392001,0.00014551,2]
[405796349,1771319446290,-500.0,0.00014551,2]
[405796350,1771319446299,-500.0,0.00014551,2]
[405796351,1771319446308,-500.0,0.00014551,2]
[405796352,1771319446318,-500.0,0.00014551,2]
[405796353,1771319446327,-500.0,0.00014551,2]
[405796354,1771319446337,-500.0,0.00014551,2]
[405796355,1771319446346,-500.0,0.00014551,2]
[405796356,1771319446355,-500.0,0.00014551,2]
[405796357,1771319446364,-500.0,0.00014551,2]
[405796358,1771319446373,-500.0,0.00014551,2]
[405796359,1771319446383,-500.0,0.00014551,2]
[405796360,1771319446392,-500.0,0.00014551,2]
[405796361,1771319446401,-500.0,0.00014551,2]
[405796362,1771319446410,-500.0,0.00014551,2]
[405796363,1771319446420,-500.0,0.00014551,2]
[405796364,1771319446430,-500.0,0.00014551,2]
[405796365,1771319446439,-500.0,0.00014551,2]
[405796366,1771319446449,-500.0,0.00014551,2]
[405796367,1771319446458,-500.0,0.00014551,2]
[405796368,1771319446468,-500.0,0.00014551,2]
[405796369,1771319446478,-500.0,0.00014551,2]
[405796370,1771319446487,-500.0,0.00014551,2]
[405796371,1771319446496,-500.0,0.00014551,2]
[405796372,1771319446506,-500.0,0.00014551,2]
[405796373,1771319446515,-500.0,0.00014551,2]
[405796374,1771319446525,-500.0,0.00014551,2]
[405796375,1771319446535,-500.0,0.00014551,2]
[405796376,1771319446544,-500.0,0.00014551,2]
[405796377,1771319446554,-500.0,0.00014551,2]
[405796378,1771319446564,-500.0,0.00014551,2]
[405796379,1771319446573,-500.0,0.00014551,2]
[405796380,1771319446583,-17919.95790815,0.00014551,2]
[405796381,1771319446603,-32080.04209185,0.00014551,2]
[405796382,1771319446612,-6.40026965,0.00014552,2]
[405796383,1771319446622,-294.07,0.000151,2]
[405796384,1771319446631,-590.52169454,0.00015298,2]
[405796385,1771319446641,-500.0,0.00015298,2]
[405796386,1771319446650,-422.2355277,0.00015298,2]
[405796387,1771319446660,-300.0,0.00015327,2]
[405796388,1771319446670,-174.0,0.00015327,2]
[405796389,1771319446679,-300.0,0.00015327,2]
[405796390,1771319446689,-300.0,0.00015327,2]
[405796391,1771319446699,-1250.59345696,0.00015487,2]
[405796393,1771319697043,5000.0,0.00014,2]
[405796394,1771319705131,2623.94088684,0.00014,2]
[405796395,1771319713629,2023.920016,0.00013699,2]
[405796396,1771319720011,719.96511324,0.00014,2]
[405796419,1771319800595,1291.0,0.00012,2]
[405796426,1771320305899,289.1796776,0.00014,2]
[405796428,1771320336783,500.0,0.00013715,2]
[405796429,1771320427114,-244.24,0.0001426,2]
[405796430,1771320427135,-430.05543288,0.0001426,2]
[405796432,1771320548094,-193.94456712,0.0001426,2]
[405796433,1771320548117,-273.67672684,0.00014278,2]
[405796434,1771320548139,-201.83216041,0.00014321,2]
[405796435,1771320548162,-191.55,0.000145,2]
[405796436,1771320548182,-50000.0,0.00014592,2]
[405796437,1771320548204,-300.0,0.00014592,2]
[405796438,1771320548231,-1200.0,0.00014592,2]
[405796439,1771320548256,-1184.3663101,0.00014596,2]
[405796440,1771320548277,-1132.3464849,0.00014596,2]
[405796441,1771320548300,-73.5402723,0.00014865,2]
[405796442,1771320550230,-490.0,0.00014865,2]
[405796444,1771320573077,-294.0,0.00014606,2]
[405796460,1771320632243,-130.12888021,0.00014591,2]
[405796461,1771320632258,-369.87111979,0.00014591,2]
[405796462,1771320632268,-500.0,0.00014591,2]
[405796463,1771320632281,-642.98797403,0.00014591,2]
[405796464,1771320632291,-231.66930394,0.00014591,2]
[405796709,1771320640692,-268.33069606,0.00014591,2]
[405796712,1771320640702,-500.0,0.00014591,2]
[405796713,1771320640711,-500.0,0.00014591,2]
[405796716,1771320640720,-500.0,0.00014591,2]
[405796718,1771320640730,-500.0,0.00014591,2]
[405796719,1771320640739,-500.0,0.00014591,2]
[405796721,1771320640749,-500.0,0.00014591,2]
[405796724,1771320640758,-500.0,0.00014591,2]
[405796725,1771320640768,-500.0,0.00014591,2]
[405796727,1771320640777,-565.73514354,0.00014591,2]
[405796729,1771320640786,-500.0,0.00014591,2]
[405796731,1771320640796,-500.0,0.00014591,2]
[405796734,1771320640806,-500.0,0.00014591,2]
[405796735,1771320640815,-500.0,0.00014591,2]
[405796738,1771320640825,-500.0,0.00014591,2]
[405796739,1771320640834,-500.0,0.00014591,2]
[405796742,1771320640843,-500.0,0.00014591,2]
[405796743,1771320640852,-500.0,0.00014591,2]
[405796745,1771320640861,-500.0,0.00014591,2]
[405796747,1771320640871,-500.0,0.00014591,2]
[405796749,1771320640880,-500.0,0.00014591,2]
[405796751,1771320640889,-500.0,0.00014591,2]
[405796753,1771320640898,-500.0,0.00014591,2]
[405796756,1771320640908,-500.0,0.00014591,2]
[405796758,1771320640918,-500.0,0.00014591,2]
[405796760,1771320640927,-500.0,0.00014591,2]
[405796762,1771320640935,-500.0,0.00014591,2]
[405796764,1771320640944,-500.0,0.00014591,2]
[405796767,1771320640960,-500.0,0.00014591,2]
[405796769,1771320640970,-500.0,0.00014591,2]
[405796771,1771320640979,-500.0,0.00014591,2]
[405796773,1771320640988,-500.0,0.00014591,2]
[405796775,1771320640997,-351.75691473,0.00014591,2]
[405796777,1771320641006,-3.5763816,0.00014606,2]
[405796779,1771320641015,-273.47362614,0.00014735,2]
[405796781,1771320641025,-73.47601303,0.00014865,2]
[405796783,1771320641034,-281.19529727,0.00015105,2]
[405796785,1771320641044,-328.39579146,0.0001519,2]
[405796787,1771320641053,-300.0,0.00015326,2]
[405796789,1771320641063,-1200.0,0.00015326,2]
[405796791,1771320641072,-610.41558134,0.00015327,2]
[405796793,1771320641081,-500.0,0.00015327,2]
[405796795,1771320641090,-500.0,0.00015327,2]
[405796797,1771320641099,-500.0,0.00015327,2]
[405796799,1771320641108,-465.00516789,0.00015327,2]
[405797052,1771320643719,-34.99483211,0.00015327,2]
[405797053,1771320643728,-500.0,0.00015327,2]
[405797054,1771320643737,-236.9951701,0.00015327,2]
[405797058,1771320643758,-30.20383822,0.00015327,2]
[405797313,1771320646207,-150.68927022,0.00015327,2]
[405797329,1771320646351,-8672.75594899,0.00015327,2]
[405797332,1771320646371,-7630.36151869,0.00015327,2]
[405797334,1771320646382,-1070.59036782,0.00015327,2]
[405797840,1771320700421,-1253.55025206,0.00015174,2]
[405797841,1771320825920,177.44,0.00014,2]
[405797842,1771320848386,5000.0,0.00014,2]
[405797843,1771320862673,10000.0,0.00015,60]
[405797844,1771320870285,1798.39484279,0.00014,2]
[405797845,1771320884725,10000.0,0.00014,10]
[405797846,1771320890844,10000.0,0.00014,10]
[405797848,1771320899616,4288.0,0.00014,10]
[405797849,1771320929117,10000.0,0.00014,10]
[405797850,1771320934805,10000.0,0.00014,10]
[405797851,1771320941886,4635.06,0.00014,10]
[405797852,1771321049586,500.0,0.0001326,2]
[405797853,1771321180208,9496.6126763,0.00013271,2]
[405797854,1771321248854,521.13,0.0001373,2]
[405797855,1771321272361,2024.79954649,0.00013709,2]
[405797864,1771321474555,3195.9177034,0.00013216,2]
[405797865,1771321507075,1405.37126778,0.00014,2]
[405797866,1771321625089,-258.8437192,0.00014116,2]
[405797868,1771321749118,-273.29997877,0.00014142,2]
[405797869,1771321749139,-3266.0,0.000142,2]
[405797870,1771321749159,-300.0,0.00014212,2]
[405797871,1771321749182,-500.0,0.00014213,2]
[405797872,1771321749203,-500.0,0.00014213,2]
[405797873,1771321749227,-564.2987974,0.00014213,2]
[405797874,1771321749248,-500.0,0.00014213,2]
[405797875,1771321749270,-500.0,0.00014213,2]
[405797876,1771321749292,-500.0,0.00014213,2]
[405797877,1771321749315,-500.0,0.00014213,2]
[405797878,1771321749334,-579.88457305,0.00014213,2]
[405797879,1771321749355,-1200.0,0.00014214,2]
[405797880,1771321749376,-246.22984031,0.00014214,2]
[405797881,1771321749396,-234.0,0.00014215,2]
[405797882,1771321749415,-300.0,0.00014215,2]
[405797883,1771321749436,-300.0,0.00014215,2]
[405797884,1771321749456,-11640.85794559,0.00014215,2]
[405797885,1771321749476,-500.0,0.00014218,2]
[405797886,1771321749495,-17643.79900186,0.00014219,2]
[405797887,1771321750070,-3878.32989974,0.00014219,2]
[405797888,1771321750089,-500.0,0.00014492,2]
[405797889,1771321750108,-500.0,0.00014591,2]
[405797890,1771321750129,-344.74235416,0.00014595,2]
[405797895,1771321832370,-155.25764584,0.00014595,2]
[405797896,1771321832379,-208.0,0.00015041,2]
[405797897,1771321832388,-300.0,0.00015041,2]
[405797898,1771321832397,-1200.0,0.00015041,2]
[405797899,1771321832406,-3004.19132686,0.00015042,2]
[405798520,1771321846566,-2712.97785132,0.00015042,2]
[405798521,1771321846674,-889.93867088,0.00015042,2]
[405798523,1771321870140,500.0,0.00013273,2]
[405798524,1771321870182,1000.0,0.00013821,2]
[405798525,1771321882017,500.0,0.00013699,2]
[405798526,1771321930991,500.0,0.00013699,2]
[405798527,1771321931763,500.0,0.00013273,2]
[405798528,1771321931815,872.28454769,0.00013821,2]
[405798529,1771322107494,500.0,0.00013273,2]
[405798530,1771322107544,1135.96258974,0.00013821,2]
[405798531,1771322111567,500.0,0.00013273,2]
[405798532,1771322111628,613.00801976,0.00013821,2]
[405798533,1771322124031,500.0,0.00013699,2]
[405798534,1771322130344,500.0,0.00013699,2]
[405798535,1771322190414,500.0,0.00013273,2]
[405798536,1771322190477,1000.0,0.00013821,2]
[405798537,1771322228983,500.0,0.00013699,2]
[405798538,1771322237441,500.0,0.00012432,2]
[405798539,1771322237916,500.0,0.00013409,2]
[405798540,1771322248597,278.09763782,0.00012796,2]
[405798544,1771322415164,451.05264262,0.00013273,2]
[405798545,1771322420231,500.0,0.00013699,2]
[405798546,1771322451484,500.0,0.00013699,2]
[405798547,1771322501838,-208.59521293,0.00014147,2]
[405798548,1771322502015,-743.61442856,0.00014147,2]
[405798549,1771322502042,-500.0,0.00014147,2]
[405798550,1771322502069,-268.58784359,0.00014147,2]
[405798551,1771322502097,-622.0,0.00014147,2]
[405798552,1771322502124,-125.88762346,0.00014246,2]
[405798553,1771322502213,-857.11237654,0.00014246,2]
[405798554,1771322528549,500.0,0.00013699,2]
[405798555,1771322531144,-500.0,0.00014247,2]
[405798556,1771322531324,-507.04993598,0.00014247,2]
[405798557,1771322531353,-181.65579221,0.00014262,2]
[405798558,1771322531412,-91.27365216,0.00014262,2]
[405798559,1771322560530,-300.43099559,0.0001465,2]
[405798560,1771322560553,-587.84373701,0.0001465,2]
[405798562,1771322589826,-0.43099559,0.00014473,2]
[405798563,1771322589850,-299.56900441,0.00014473,2]
[405798575,1771322839804,206.7,0.00014,2]
[405798576,1771322854427,-1362.94372765,0.00014328,2]
[405798577,1771322854449,-2.87226383,0.000144,2]
[405798601,1771322865853,521.99582732,0.0001375,2]
[405798602,1771322868453,939.59248917,0.0001375,2]
[405798604,1771322871717,1670.38664742,0.0001375,2]
[405798605,1771322874391,2609.9791366,0.0001375,2]
[405798606,1771322877242,3754.61158674,0.0001375,2]
[405798607,1771322880444,205.48338665,0.00013866,2]
[405798608,1771322950104,-4540.63589594,0.00014371,2]
[405798609,1771322950127,-264.59859165,0.000144,2]
[405798610,1771322950147,-300.0,0.0001447,2]
[405798611,1771322950168,-172.36088822,0.00014471,2]
[405798612,1771322950189,-500.0,0.00014471,2]
[405798613,1771322950211,-500.0,0.00014471,2]
[405798614,1771322950231,-500.0,0.00014471,2]
[405798615,1771322950252,-500.0,0.00014471,2]
[405798616,1771322950274,-500.0,0.00014471,2]
[405798617,1771322950411,-213.98750742,0.00014471,2]
[405798618,1771322950432,-500.0,0.00014471,2]
[405798619,1771322950456,-500.0,0.00014471,2]
[405798620,1771322950477,-500.0,0.00014471,2]
[405798621,1771322950500,-500.0,0.00014471,2]
[405798622,1771322950522,-500.0,0.00014471,2]
[405798623,1771322950543,-500.0,0.00014471,2]
[405798624,1771322950562,-500.0,0.00014471,2]
[405798625,1771322950582,-500.0,0.00014471,2]
[405798626,1771322950602,-500.0,0.00014471,2]
[405798627,1771322950622,-472.30107855,0.00014471,2]
[405798628,1771322950642,-500.0,0.00014471,2]
[405798629,1771322950663,-500.0,0.00014471,2]
[405798630,1771322950686,-500.0,0.00014471,2]
[405798631,1771322950708,-500.0,0.00014471,2]
[405798632,1771322950733,-500.0,0.00014471,2]
[405798633,1771322950758,-500.0,0.00014471,2]
[405798634,1771322950782,-500.0,0.00014471,2]
[405798635,1771322950804,-188.29562496,0.00014471,2]
[405798636,1771322950826,-500.0,0.00014471,2]
[405798637,1771322950850,-500.0,0.00014471,2]
[405798638,1771322950873,-500.0,0.00014471,2]
[405798639,1771322950897,-500.0,0.00014471,2]
[405798640,1771322950925,-500.0,0.00014471,2]
[405798641,1771322950954,-500.0,0.00014471,2]
[405798642,1771322950977,-500.0,0.00014471,2]
[405798643,1771322950998,-500.0,0.00014471,2]
[405798644,1771322951019,-500.0,0.00014471,2]
[405798645,1771322951040,-500.0,0.00014471,2]
[405798646,1771322951063,-500.0,0.00014471,2]
[405798647,1771322951084,-500.0,0.00014471,2]
[405798648,1771322951107,-500.0,0.00014471,2]
[405798649,1771322951128,-494.55970631,0.00014471,2]
[405798650,1771322951148,-500.0,0.00014471,2]
[405798651,1771322951170,-500.0,0.00014471,2]
[405798652,1771322951189,-500.0,0.00014471,2]
[405798653,1771322951211,-500.0,0.00014471,2]
[405798654,1771322951232,-307.98845731,0.00014471,2]
[405798655,1771322951254,-500.0,0.00014471,2]
[405798656,1771322951278,-500.0,0.00014471,2]
[405798657,1771322951299,-500.0,0.00014471,2]
[405798658,1771322951322,-500.0,0.00014471,2]
[405798659,1771322951344,-500.0,0.00014471,2]
[405798660,1771322951366,-500.0,0.00014471,2]
[405798661,1771322951388,-500.0,0.00014471,2]
[405798662,1771322951409,-500.0,0.00014471,2]
[405798663,1771322951430,-500.0,0.00014471,2]
[405798664,1771322951451,-500.0,0.00014471,2]
[405798665,1771322951474,-500.0,0.00014471,2]
[405798666,1771322951497,-500.0,0.00014471,2]
[405798667,1771322951518,-436.41752953,0.00014471,2]
[405798668,1771322951539,-500.0,0.00014471,2]
[405798669,1771322951561,-500.0,0.00014471,2]
[405798670,1771322951585,-500.0,0.00014471,2]
[405798671,1771322951607,-500.0,0.00014471,2]
[405798672,1771322951631,-500.0,0.00014471,2]
[405798673,1771322951654,-500.0,0.00014471,2]
[405798674,1771322951676,-500.0,0.00014471,2]
[405798675,1771322951697,-250.0,0.00014471,2]
[405798676,1771322951720,-500.0,0.00014471,2]
[405798677,1771322951743,-500.0,0.00014471,2]
[405798678,1771322951765,-500.0,0.00014471,2]
[405798679,1771322951786,-500.0,0.00014471,2]
[405798680,1771322951815,-500.0,0.00014471,2]
[405798681,1771322951837,-500.0,0.00014471,2]
[405798682,1771322951861,-500.0,0.00014471,2]
[405798683,1771322951885,-500.0,0.00014471,2]
[405798684,1771322951909,-500.0,0.00014471,2]
[405798685,1771322951932,-500.0,0.00014471,2]
[405798686,1771322951954,-500.0,0.00014471,2]
[405798687,1771322951981,-500.0,0.00014471,2]
[405798688,1771322952004,-500.0,0.00014471,2]
[405798689,1771322952025,-500.0,0.00014471,2]
[405798690,1771322952047,-500.0,0.00014471,2]
[405798691,1771322952067,-469.01004683,0.00014471,2]
[405798692,1771322952088,-500.0,0.00014471,2]
[405798693,1771322952109,-500.0,0.00014471,2]
[405798694,1771322952130,-500.0,0.00014471,2]
[405798695,1771322952150,-500.0,0.00014471,2]
[405798696,1771322952173,-500.0,0.00014471,2]
[405798697,1771322952194,-421.09042145,0.00014471,2]
[405798698,1771322952214,-500.0,0.00014471,2]
[405798699,1771322952236,-499.99999999,0.00014471,2]
[405798700,1771322952258,-500.0,0.00014471,2]
[405798701,1771322952281,-500.0,0.00014471,2]
[405798702,1771322952303,-500.0,0.00014471,2]
[405798703,1771322952325,-500.0,0.00014471,2]
[405798704,1771322952348,-500.0,0.00014471,2]
[405798705,1771322952370,-500.0,0.00014471,2]
[405798706,1771322952393,-500.0,0.00014471,2]
[405798707,1771322952414,-500.0,0.00014471,2]
[405798708,1771322952437,-215.15750328,0.00014471,2]
[405798709,1771322952459,-500.0,0.00014471,2]
[405798710,1771322952480,-500.0,0.00014471,2]
[405798711,1771322952502,-500.0,0.00014471,2]
[405798712,1771322952523,-507.91749152,0.00014471,2]
[405798713,1771322952543,-500.0,0.00014471,2]
[405798714,1771322952564,-500.0,0.00014471,2]
[405798715,1771322952586,-500.0,0.00014471,2]
[405798716,1771322952606,-500.0,0.00014471,2]
[405798717,1771322952627,-500.0,0.00014471,2]
[405798718,1771322952649,-500.0,0.00014471,2]
[405798719,1771322952668,-500.0,0.00014471,2]
[405798720,1771322952688,-500.0,0.00014471,2]
[405798721,1771322952708,-500.0,0.00014471,2]
[405798722,1771322952729,-500.0,0.00014471,2]
[405798723,1771322952750,-500.0,0.00014471,2]
[405798724,1771322952770,-500.0,0.00014471,2]